bitfinex-derivatives/quotes_BTCF0:USTF0_20250626
["timestamp","ask_amount","ask_price","bid_price","bid_amount"]
[1750907301675,1.2854328,108170.0,108160.0,0.63883431]
[1750907302983,1.2854328,108170.0,108160.0,0.45402451]
[1750907303676,1.2854328,108170.0,108160.0,0.09322451]
[1750907303882,1.2854328,108170.0,108160.0,0.45402451]
[1750907304282,1.2854328,108170.0,108160.0,0.46658292]
[1750907304783,1.2854328,108170.0,108160.0,0.65139282]
[1750907305281,1.2854328,108170.0,108160.0,0.46658292]
[1750907305974,1.2854328,108170.0,108160.0,0.42362451]
[1750907306277,1.96987288,108170.0,108160.0,0.00092451]
[1750907306477,2.03287288,108170.0,108160.0,0.00092451]
[1750907306678,1.67207288,108170.0,108160.0,0.00092451]
[1750907307482,1.3484328,108170.0,108160.0,0.00092451]
[1750907308887,1.67207288,108170.0,108160.0,0.00092451]
[1750907309589,1.3484328,108170.0,108160.0,0.00092451]
[1750907310492,1.3484328,108170.0,108160.0,0.03262451]
[1750907310881,1.3484328,108170.0,108160.0,0.06472451]
[1750907312289,1.62543844,108170.0,108160.0,0.06472451]
[1750907315386,1.62543844,108170.0,108160.0,0.00092451]
[1750907318080,0.6187928,108170.0,108160.0,0.00092451]
[1750907318288,1.3453528,108170.0,108160.0,0.82354005]
[1750907318586,1.3453528,108170.0,108160.0,0.42322451]
[1750907319688,1.62235844,108170.0,108160.0,0.39322451]
[1750907319890,1.62235844,108170.0,108160.0,0.36172451]
[1750907321492,0.89579844,108170.0,108160.0,0.36172451]
[1750907321690,1.62183844,108170.0,108160.0,0.36172451]
[1750907322675,0.5557928,108170.0,108160.0,0.82354005]
[1750907322877,0.121,108170.0,108160.0,1.52909134]
[1750907323083,0.1857928,108170.0,108160.0,0.68343784]
[1750907323282,0.1857928,108170.0,108160.0,1.61266005]
[1750907323585,0.1857928,108170.0,108160.0,1.40895784]
[1750907323784,0.1857928,108170.0,108160.0,2.05596348]
[1750907323986,0.1857928,108170.0,108160.0,1.40895784]
[1750907324288,0.1857928,108170.0,108160.0,1.68596348]
[1750907324487,0.1887928,108170.0,108160.0,1.68696348]
[1750907324891,0.1887928,108170.0,108160.0,2.02696348]
[1750907325087,0.1867928,108170.0,108160.0,1.68796348]
[1750907325491,0.1867928,108170.0,108160.0,0.96244348]
[1750907326387,0.1867928,108170.0,108160.0,1.00995139]
[1750907327086,0.1867928,108170.0,108160.0,1.37995139]
[1750907327284,0.002,108170.0,108160.0,1.37995139]
[1750907327488,0.002,108170.0,108160.0,1.39827724]
[1750907327890,0.1867928,108170.0,108160.0,1.39827724]
[1750907328391,0.1867928,108170.0,108160.0,1.30664796]
[1750907329391,0.002,108170.0,108160.0,0.98213441]
[1750907329586,0.1857928,108170.0,108160.0,1.38008421]
[1750907329785,0.1867928,108170.0,108160.0,1.01008421]
[1750907330384,0.002,108170.0,108160.0,1.34008421]
[1750907330690,0.002,108170.0,108160.0,1.26664796]
[1750907331185,0.001,108170.0,108160.0,1.26664796]
[1750907331392,0.001,108170.0,108160.0,1.26864796]
[1750907332285,0.001,108170.0,108160.0,0.94413441]
[1750907332483,0.001,108170.0,108160.0,1.34204513]
[1750907332685,0.001,108170.0,108160.0,1.01753158]
[1750907332993,0.1857928,108170.0,108160.0,1.01204513]
[1750907334088,0.1857928,108170.0,108160.0,0.68753158]
[1750907334289,0.1857928,108170.0,108160.0,1.01204513]
[1750907334893,0.1857928,108170.0,108160.0,1.35204513]
[1750907335093,0.1857928,108170.0,108160.0,1.01204513]
[1750907335296,0.1857928,108170.0,108160.0,0.68753158]
[1750907335493,0.1857928,108170.0,108160.0,1.01204513]
[1750907335681,0.1857928,108170.0,108160.0,1.36204513]
[1750907335887,0.1857928,108170.0,108160.0,1.01204513]
[1750907336087,0.1857928,108170.0,108160.0,1.34204513]
[1750907338095,0.1857928,108170.0,108160.0,1.01204513]
[1750907341488,0.5657928,108170.0,108160.0,0.18973441]
[1750907341697,0.6294928,108170.0,108160.0,0.24480734]
[1750907341890,0.5657928,108170.0,108160.0,0.60560734]
[1750907342100,0.3257928,108170.0,108160.0,1.01164513]
[1750907342703,0.3257928,108170.0,108160.0,0.68713158]
[1750907342902,0.3257928,108170.0,108160.0,1.01164513]
[1750907343103,0.141,108170.0,108160.0,1.01164513]
[1750907343299,0.3257928,108170.0,108160.0,1.01164513]
[1750907344000,0.3257928,108170.0,108160.0,0.62393158]
[1750907344308,0.3896928,108170.0,108160.0,0.62393158]
[1750907345304,0.3896928,108170.0,108160.0,0.68923158]
[1750907345998,0.3896928,108170.0,108160.0,0.65643158]
[1750907346200,0.3896928,108170.0,108160.0,0.62393158]
[1750907346401,0.6296928,108170.0,108160.0,0.62393158]
[1750907346702,0.90666432,108170.0,108160.0,0.00492451]
[1750907346897,1.98746432,108170.0,108160.0,0.06003358]
[1750907347204,2.00859869,108170.0,108160.0,0.00492451]
[1750907347398,1.73162717,108170.0,108160.0,0.00492451]
[1750907347601,2.22951869,108170.0,108160.0,0.00492451]
[1750907347798,1.95254717,108170.0,108160.0,0.00492451]
[1750907347997,2.22951869,108170.0,108160.0,0.00492451]
[1750907348396,2.41442269,108170.0,108160.0,0.00492451]
[1750907348693,2.66442269,108170.0,108160.0,0.00492451]
[1750907349498,2.64328832,108170.0,108160.0,0.00492451]
[1750907349702,2.66457347,108170.0,108160.0,0.00492451]
[1750907350109,2.67656538,108170.0,108160.0,0.00492451]
[1750907351103,2.39959386,108170.0,108160.0,0.00492451]
[1750907351309,2.40528023,108170.0,108160.0,0.00492451]
[1750907354012,2.40528023,108170.0,108160.0,0.00292451]
[1750907354203,2.13030871,108170.0,108160.0,0.00192451]
[1750907354511,2.40728023,108170.0,108160.0,0.00192451]
[1750907359416,0.184827,108150.0,108140.0,0.05510907]
[1750907359618,1.55927852,108150.0,108140.0,0.05510907]
[1750907359819,1.62567852,108150.0,108140.0,0.05510907]
[1750907360208,1.348707,108150.0,108140.0,0.05510907]
[1750907360419,0.184844,108140.0,108130.0,1.00201496]
[1750907360620,0.217944,108140.0,108130.0,1.00201496]
[1750907361628,0.217944,108140.0,108130.0,1.00501496]
[1750907361933,0.218944,108140.0,108130.0,1.00901496]
[1750907362328,0.218944,108140.0,108130.0,0.68582824]
[1750907362528,0.318944,108140.0,108130.0,0.68582824]
[1750907363325,0.285844,108140.0,108130.0,0.97808854]
[1750907363525,0.285844,108140.0,108130.0,0.70111702]
[1750907363726,0.285844,108140.0,108130.0,0.97808854]
[1750907364025,0.285844,108140.0,108130.0,0.92297947]
[1750907364221,0.185844,108140.0,108130.0,0.92297947]
[1750907364428,0.545844,108140.0,108130.0,0.92297947]
[1750907364631,0.62039932,108140.0,108130.0,0.92297947]
[1750907366336,0.62039932,108140.0,108130.0,0.64600795]
[1750907366836,0.62039932,108140.0,108130.0,0.43422477]
[1750907367240,0.89737084,108140.0,108130.0,0.48933384]
[1750907367432,0.92987084,108140.0,108130.0,0.43422477]
[1750907367738,0.96167084,108140.0,108130.0,0.40142477]
[1750907368034,0.99407084,108140.0,108130.0,0.36872477]
[1750907370639,0.99407084,108140.0,108130.0,0.42383384]
[1750907370835,0.71709932,108140.0,108130.0,0.42383384]
[1750907371140,0.71709932,108140.0,108130.0,0.43372477]
[1750907371940,0.71709932,108140.0,108130.0,0.04112477]
[1750907372143,0.99407084,108140.0,108130.0,0.0962073]
[1750907372746,0.71709932,108140.0,108130.0,0.1276073]
[1750907373945,0.71709932,108140.0,108130.0,0.4884073]
[1750907374143,0.68469932,108140.0,108130.0,0.4884073]
[1750907374545,0.68469932,108140.0,108130.0,0.1276073]
[1750907374844,0.96167084,108140.0,108130.0,0.1276073]
[1750907376044,0.96167084,108140.0,108130.0,0.07252477]
[1750907376246,0.96167084,108140.0,108130.0,0.1276073]
[1750907376744,0.96167084,108140.0,108130.0,0.07252477]
[1750907377134,0.68469932,108140.0,108130.0,0.07252477]
[1750907377646,0.96167084,108140.0,108130.0,0.07252477]
[1750907377844,0.68469932,108140.0,108130.0,0.07252477]
[1750907378145,0.96167084,108140.0,108130.0,0.07252477]
[1750907379346,1.67391084,108140.0,108130.0,0.43332477]
[1750907379844,1.69583614,108140.0,108130.0,0.43332477]
[1750907380146,1.41886462,108140.0,108130.0,0.43332477]
[1750907380339,1.69583614,108140.0,108130.0,0.43332477]
[1750907380742,1.41886462,108140.0,108130.0,0.43332477]
[1750907380942,0.62039932,108140.0,108130.0,0.4884073]
[1750907381140,1.33231932,108140.0,108130.0,0.4884073]
[1750907381344,1.33187932,108140.0,108130.0,0.4884073]
[1750907382543,1.33179932,108140.0,108130.0,0.4884073]
[1750907383347,1.33179932,108140.0,108130.0,0.76537882]
[1750907383547,1.33119932,108140.0,108130.0,0.76537882]
[1750907383748,1.12119932,108140.0,108130.0,0.4884073]
[1750907383948,1.32119932,108140.0,108130.0,0.76537882]
[1750907384244,1.32119932,108140.0,108130.0,0.43332477]
[1750907384443,1.59817084,108140.0,108130.0,0.0630073]
[1750907384648,1.59817084,108140.0,108130.0,0.00792477]
[1750907384649,2.02027084,108140.0,108130.0,0.00792477]
[1750907384849,2.04219862,108140.0,108130.0,0.00792477]
[1750907385848,2.04319862,108140.0,108130.0,0.00492477]
[1750907386049,2.04519862,108140.0,108130.0,0.00192477]
[1750907386445,2.02327084,108140.0,108130.0,0.00192477]
[1750907386650,2.04528654,108140.0,108130.0,0.00192477]
[1750907387047,2.23023854,108140.0,108130.0,7e-08]
[1750907389747,2.04528654,108140.0,108130.0,7e-08]
[1750907390352,1.05751502,108140.0,108130.0,7e-08]
[1750907390653,2.25984654,108140.0,108130.0,7e-08]
[1750907392758,2.44479854,108140.0,108130.0,7e-08]
[1750907392959,2.16782702,108140.0,108130.0,7e-08]
[1750907393156,2.44479854,108140.0,108130.0,7e-08]
[1750907401158,1.51943854,108140.0,108130.0,7e-08]
[1750907401364,2.43719854,108140.0,108130.0,7e-08]
[1750907404662,2.25224654,108140.0,108130.0,7e-08]
[1750907407160,2.35224654,108140.0,108130.0,7e-08]
[1750907408261,2.62967553,108140.0,108130.0,7e-08]
[1750907408467,2.62967553,108140.0,108100.0,0.45772503]
[1750907408468,0.1848953,108110.0,108100.0,0.45772503]
[1750907408664,0.80186682,108110.0,108100.0,0.45772503]
[1750907408868,1.71722682,108110.0,108100.0,0.45772503]
[1750907409773,1.71822682,108110.0,108100.0,0.46472503]
[1750907410070,1.71786682,108110.0,108100.0,0.46472503]
[1750907410268,1.74036866,108110.0,108100.0,0.46472503]
[1750907411258,1.74036866,108110.0,108100.0,0.40122503]
[1750907411455,1.83796866,108110.0,108100.0,0.40122503]
[1750907411659,1.84941269,108110.0,108100.0,0.40122503]
[1750907412470,2.21021269,108110.0,108100.0,0.04042503]
[1750907415258,2.21021269,108110.0,108100.0,0.00792503]
[1750907417775,2.21021269,108110.0,108100.0,0.00492503]
[1750907417969,2.02431739,108110.0,108090.0,0.0923]
[1750907418176,0.82268382,108100.0,108090.0,0.0923]
[1750907418379,1.18518566,108100.0,108090.0,0.0923]
[1750907419277,0.1849466,108080.0,108070.0,0.36172528]
[1750907419473,0.1849466,108080.0,108070.0,0.40337609]
[1750907419474,1.16331812,108080.0,108070.0,0.40337609]
[1750907419775,0.8863466,108080.0,108070.0,0.40337609]
[1750907420073,1.16331812,108080.0,108070.0,0.40337609]
[1750907420279,1.23574964,108080.0,108070.0,0.40337609]
[1750907420764,1.23574964,108080.0,108070.0,0.46507609]
[1750907420968,2.73574964,108080.0,108070.0,0.46507609]
[1750907421168,2.45877812,108080.0,108070.0,0.45372528]
[1750907421569,2.45877812,108080.0,108070.0,0.45572528]
[1750907421770,2.73574964,108080.0,108070.0,0.45572528]
[1750907423981,2.73674964,108080.0,108070.0,0.45872528]
[1750907425277,3.11674964,108080.0,108070.0,0.45872528]
[1750907428578,3.39372116,108080.0,108070.0,0.09792528]
[1750907428873,3.60496116,108080.0,108070.0,0.09792528]
[1750907429068,3.67036116,108080.0,108070.0,0.09792528]
[1750907429268,3.67036116,108080.0,108070.0,0.00592528]
[1750907429582,4.03116116,108080.0,108070.0,0.00592528]
[1750907429971,2.53116116,108080.0,108070.0,0.00592528]
[1750907430284,2.55381693,108080.0,108070.0,8e-08]
[1750907430882,2.19301693,108080.0,108070.0,8e-08]
[1750907431084,2.91461693,108080.0,108070.0,8e-08]
[1750907431480,0.1849808,108060.0,108050.0,0.456]
[1750907431682,1.53060055,108060.0,108050.0,0.3912]
[1750907431876,1.79956055,108060.0,108050.0,0.3912]
[1750907432075,1.79956055,108060.0,108050.0,0.3608]
[1750907432277,0.1849979,108050.0,108040.0,0.42522554]
[1750907432477,0.83196942,108050.0,108040.0,0.42522554]
[1750907432677,0.83221765,108050.0,108040.0,0.36172554]
[1750907432878,0.89351765,108050.0,108040.0,0.36172554]
[1750907433078,0.92411765,108050.0,108040.0,0.36172554]
[1750907433986,0.92511765,108050.0,108040.0,0.36572554]
[1750907435181,0.92511765,108050.0,108040.0,0.36772554]
[1750907436081,0.64814613,108050.0,108040.0,0.36772554]
[1750907436287,0.92511765,108050.0,108040.0,0.36772554]
[1750907436887,0.9361639,108050.0,108040.0,0.36772554]
[1750907437282,1.2969639,108050.0,108040.0,0.00692554]
[1750907437784,1.52046613,108050.0,108040.0,0.36772554]
[1750907437988,1.73613765,108050.0,108040.0,0.43292554]
[1750907438180,1.73589765,108050.0,108040.0,0.43292554]
[1750907438380,1.20880613,108050.0,108040.0,0.43292554]
[1750907438677,0.83321765,108050.0,108040.0,0.43292554]
[1750907438991,1.52953765,108050.0,108040.0,0.43292554]
[1750907439385,1.52853765,108050.0,108040.0,0.42892554]
[1750907439591,1.52953765,108050.0,108040.0,0.43192554]
[1750907439790,1.52953765,108050.0,108040.0,0.42992554]
[1750907440093,1.52953765,108050.0,108040.0,0.43092554]
[1750907440484,0.83321765,108050.0,108040.0,0.43092554]
[1750907440692,1.52893765,108050.0,108040.0,0.43092554]
[1750907442388,0.55624613,108050.0,108040.0,0.96594054]
[1750907442591,0.18624613,108050.0,108040.0,1.67802406]
[1750907442887,0.2312406,108060.0,108050.0,0.1849979]
[1750907443093,0.1949948,108060.0,108050.0,1.22646942]
[1750907443292,0.1949948,108060.0,108050.0,1.41155742]
[1750907443489,0.1450948,108060.0,108050.0,1.66155742]
[1750907443689,0.2312119,108070.0,108060.0,0.1849808]
[1750907443895,0.23096367,108070.0,108060.0,0.88602903]
[1750907444193,0.1849704,108070.0,108060.0,1.59807255]
[1750907444987,0.1849608,108080.0,108070.0,0.1849637]
[1750907445197,0.2049608,108080.0,108070.0,1.18273522]
[1750907445394,0.2049608,108080.0,108070.0,2.31251945]
[1750907445692,0.2049608,108080.0,108070.0,1.15610423]
[1750907445996,0.2049608,108080.0,108070.0,1.34106793]
[1750907446290,0.2049608,108080.0,108070.0,1.35202573]
[1750907446994,0.2049608,108080.0,108070.0,1.38542573]
[1750907447189,0.2049608,108080.0,108070.0,1.66239725]
[1750907447786,0.1849466,108080.0,108070.0,1.66239725]
[1750907447983,0.1849466,108080.0,108070.0,1.75487315]
[1750907448195,0.1849466,108080.0,108070.0,1.75737315]
[1750907448391,0.46191812,108080.0,108070.0,1.01044563]
[1750907448595,0.4571466,108080.0,108070.0,0.85701193]
[1750907448797,0.73411812,108080.0,108070.0,0.57941193]
[1750907448988,0.73411812,108080.0,108070.0,2.04487945]
[1750907448989,0.1849466,108080.0,108070.0,2.04487945]
[1750907449303,0.1849466,108080.0,108070.0,2.50117945]
[1750907449494,0.2311658,108090.0,108080.0,0.1849466]
[1750907449690,0.3511658,108090.0,108080.0,1.17721812]
[1750907449886,0.12,108090.0,108080.0,1.61250635]
[1750907450091,0.1849257,108100.0,108090.0,0.1849295]
[1750907450296,0.4749257,108100.0,108090.0,1.86788102]
[1750907450497,0.4749257,108100.0,108090.0,1.27115773]
[1750907450697,0.4749257,108100.0,108090.0,1.62115773]
[1750907450899,0.5063257,108100.0,108090.0,1.62115773]
[1750907451201,0.5063257,108100.0,108090.0,1.62105773]
[1750907451502,0.5063257,108100.0,108090.0,1.59105773]
[1750907451702,0.5370257,108100.0,108090.0,1.59105773]
[1750907452300,0.81399722,108100.0,108090.0,1.59105773]
[1750907452703,0.81599722,108100.0,108090.0,1.59205773]
[1750907452999,0.5390257,108100.0,108090.0,1.59205773]
[1750907453503,0.5380257,108100.0,108090.0,1.60276376]
[1750907453800,0.5380257,108100.0,108090.0,1.64276376]
[1750907453999,0.5380257,108100.0,108090.0,0.95032376]
[1750907454199,0.5380257,108100.0,108090.0,1.64228376]
[1750907454393,0.3224,108100.0,108090.0,1.64228376]
[1750907454698,0.3224,108100.0,108090.0,1.64238376]
[1750907455200,0.3224,108100.0,108090.0,1.91935528]
[1750907455697,0.5073123,108100.0,108090.0,1.91935528]
[1750907455892,0.291,108100.0,108090.0,1.91935528]
[1750907456096,0.1859123,108100.0,108090.0,1.91935528]
[1750907456997,0.1859123,108100.0,108090.0,1.64238376]
[1750907457197,0.1859123,108100.0,108090.0,1.91935528]
[1750907457794,0.001,108100.0,108090.0,2.35437928]
[1750907458391,0.1859124,108100.0,108090.0,2.30945928]
[1750907458801,0.1859124,108100.0,108090.0,1.41241928]
[1750907459101,0.1859124,108100.0,108090.0,2.30921928]
[1750907459905,0.001,108100.0,108090.0,2.30921928]
[1750907461197,0.1859124,108100.0,108090.0,2.30921928]
[1750907461491,0.001,108100.0,108090.0,2.30921928]
[1750907462195,0.001,108100.0,108090.0,2.30341928]
[1750907463096,0.1859124,108100.0,108090.0,1.41241928]
[1750907463302,0.1859124,108100.0,108090.0,1.84104376]
[1750907463496,0.55668392,108100.0,108090.0,0.95032376]
[1750907463695,0.2797124,108100.0,108090.0,0.95032376]
[1750907464298,0.90668392,108100.0,108090.0,0.36204823]
[1750907465303,0.90668392,108100.0,108090.0,0.54697773]
[1750907469403,0.90668392,108100.0,108090.0,0.36204823]
[1750907471117,0.90668392,108100.0,108090.0,0.54697773]
[1750907473313,0.90668392,108100.0,108090.0,0.52817773]
[1750907473519,0.90668392,108100.0,108090.0,0.34324823]
[1750907475223,1.59348392,108100.0,108090.0,0.34324823]
[1750907476622,1.59348392,108100.0,108090.0,1.13514925]
[1750907476623,0.0948,108100.0,108090.0,1.13514925]
[1750907476824,0.1248,108100.0,108090.0,1.82126925]
[1750907477017,0.3097124,108100.0,108090.0,1.82126925]
[1750907477416,0.3097124,108100.0,108090.0,1.54429773]
[1750907477621,0.3097124,108100.0,108090.0,1.82126925]
[1750907478526,0.3097124,108100.0,108090.0,1.54429773]
[1750907478822,0.3097124,108100.0,108090.0,1.82126925]
[1750907479523,0.3097124,108100.0,108090.0,1.85276925]
[1750907482222,0.2789124,108100.0,108090.0,1.85276925]
[1750907482824,0.064,108100.0,108090.0,1.92616642]
[1750907483016,0.064,108100.0,108090.0,2.12740642]
[1750907483721,0.2489124,108100.0,108090.0,2.12740642]
[1750907485826,0.064,108100.0,108090.0,2.12740642]
[1750907486131,0.064,108100.0,108090.0,2.05400925]
[1750907486423,0.064,108100.0,108090.0,2.12740642]
[1750907487831,0.064,108100.0,108090.0,1.8504349]
[1750907488026,0.064,108100.0,108090.0,2.12740642]
[1750907488226,0.2489124,108100.0,108090.0,1.24004642]
[1750907488420,0.2489124,108100.0,108090.0,1.92352642]
[1750907488822,0.064,108100.0,108090.0,1.92352642]
[1750907489135,0.2489124,108100.0,108090.0,1.77403773]
[1750907489428,0.0957,108100.0,108090.0,2.05100925]
[1750907489726,0.2806124,108100.0,108090.0,2.05100925]
[1750907489926,0.0957,108100.0,108090.0,2.05100925]
[1750907490431,0.2806124,108100.0,108090.0,2.12440642]
[1750907491822,0.2806124,108100.0,108090.0,2.50275819]
[1750907492229,0.2806124,108100.0,108090.0,2.1156895]
[1750907493931,0.001,108100.0,108090.0,2.46605819]
[1750907494221,0.001,108100.0,108090.0,2.42666102]
[1750907494427,0.001,108100.0,108090.0,2.61168502]
[1750907494621,0.001,108100.0,108090.0,2.3347135]
[1750907494820,0.001,108100.0,108090.0,2.61168502]
[1750907495022,0.001,108100.0,108090.0,2.7033143]
[1750907496624,0.001,108100.0,108090.0,2.42634278]
[1750907496826,0.001,108100.0,108090.0,2.7033143]
[1750907498630,0.0339,108100.0,108090.0,2.7033143]
[1750907499231,0.0339,108100.0,108090.0,2.23881878]
[1750907499430,0.0666,108100.0,108090.0,2.5157903]
[1750907500019,0.0666,108100.0,108090.0,2.42416102]
[1750907500223,0.0666,108100.0,108090.0,2.4385895]
[1750907500430,0.0666,108100.0,108090.0,2.78912909]
[1750907506234,0.0666,108100.0,108090.0,2.78902909]
[1750907506626,0.0666,108100.0,108090.0,2.71546102]
[1750907506935,0.001,108100.0,108090.0,2.90048502]
[1750907507122,0.001,108100.0,108090.0,2.9922143]
[1750907507734,0.0341,108110.0,108100.0,0.1849124]
[1750907508034,0.0341,108110.0,108100.0,1.5662132]
[1750907508227,0.0003207,108110.0,108100.0,1.63980074]
[1750907508428,0.0306,108120.0,108110.0,0.1848953]
[1750907508631,0.0331,108140.0,108130.0,0.1848611]
[1750907508831,0.1962,108140.0,108130.0,2.29505255]
[1750907509030,0.1962,108140.0,108130.0,2.49177255]
[1750907510237,0.1962,108140.0,108130.0,2.42892155]
[1750907510427,0.0341,108140.0,108130.0,2.53536148]
[1750907510626,0.0341,108140.0,108130.0,2.53546148]
[1750907511035,0.0391,108140.0,108130.0,2.53646148]
[1750907511935,0.0708,108140.0,108130.0,2.53646148]
[1750907512138,0.1018,108140.0,108130.0,2.60988796]
[1750907513334,0.1048,108140.0,108130.0,1.70208796]
[1750907513638,0.289644,108140.0,108130.0,2.57560796]
[1750907514239,0.289644,108140.0,108130.0,2.50206803]
[1750907514741,0.1048,108140.0,108130.0,2.50206803]
[1750907515645,0.56661552,108140.0,108130.0,0.99157651]
[1750907515932,0.56661552,108140.0,108130.0,0.7226]
[1750907515933,0.92661552,108140.0,108130.0,0.7226]
[1750907517131,0.649644,108140.0,108130.0,0.7226]
[1750907517333,0.92661552,108140.0,108130.0,0.7226]
[1750907517938,1.28741552,108140.0,108130.0,0.001]
[1750907518134,0.1848611,108130.0,108120.0,0.5456696]
[1750907518437,0.81383262,108130.0,108120.0,0.3608]
[1750907519531,0.81383262,108130.0,108110.0,0.5919128]
[1750907519532,0.1848782,108120.0,108110.0,0.5919128]
[1750907519728,0.5281782,108120.0,108110.0,0.5919128]
[1750907519932,0.80514972,108120.0,108110.0,0.5919128]
[1750907520133,0.80514972,108120.0,108110.0,0.9719128]
[1750907520332,0.80514972,108120.0,108110.0,0.5919128]
[1750907521031,0.80514972,108120.0,108110.0,0.3608]
[1750907521228,0.83524972,108120.0,108110.0,0.3608]
[1750907521433,0.83524972,108120.0,108110.0,0.5456953]
[1750907521839,0.83624972,108120.0,108110.0,0.5466953]
[1750907522240,0.5592782,108120.0,108110.0,0.8966953]
[1750907523442,0.2792782,108120.0,108110.0,0.8966953]
[1750907523641,0.2892782,108120.0,108110.0,0.8966953]
[1750907524038,0.1044,108120.0,108110.0,1.17366682]
[1750907524946,0.3844,108120.0,108110.0,1.17366682]
[1750907525138,0.1444,108120.0,108110.0,1.17366682]
[1750907525444,0.3292782,108120.0,108110.0,1.17366682]
[1750907525643,0.5892782,108120.0,108110.0,1.17366682]
[1750907525851,0.5892782,108120.0,108110.0,0.82366682]
[1750907526346,0.1144,108120.0,108110.0,1.16366682]
[1750907528240,0.0944,108120.0,108110.0,1.16366682]
[1750907528750,0.2792782,108120.0,108110.0,1.16366682]
[1750907529446,0.2792782,108120.0,108110.0,0.8866953]
[1750907530951,0.57624972,108120.0,108110.0,1.03476]
[1750907531146,0.89624972,108120.0,108110.0,0.3618]
[1750907531848,0.89624972,108120.0,108110.0,0.3119]
[1750907532044,0.6192782,108120.0,108110.0,0.3119]
[1750907532350,0.89624972,108120.0,108110.0,0.3119]
[1750907534850,1.56828972,108120.0,108110.0,0.001]
[1750907535154,1.75328172,108120.0,108110.0,0.001]
[1750907536654,1.94564172,108120.0,108110.0,0.001]
[1750907543066,0.1849124,108100.0,108090.0,0.3608]
[1750907543267,0.1849124,108100.0,108080.0,0.66551513]
[1750907543268,0.1849295,108090.0,108080.0,0.43433993]
[1750907543474,0.55900102,108090.0,108080.0,0.3608]
[1750907543861,0.1849466,108080.0,108070.0,0.07446521]
[1750907544174,1.50651812,108080.0,108070.0,0.00092528]
[1750907545371,1.50751812,108080.0,108070.0,0.54668898]
[1750907545581,0.83751812,108080.0,108070.0,0.54668898]
[1750907545781,0.5605466,108080.0,108070.0,0.54668898]
[1750907545964,0.001,108080.0,108070.0,1.18555021]
[1750907546168,0.001,108080.0,108070.0,1.24865021]
[1750907546363,0.001,108080.0,108070.0,1.32219014]
[1750907546564,0.004,108080.0,108070.0,1.32310522]
[1750907546875,0.004,108080.0,108070.0,1.24965021]
[1750907547070,0.002,108080.0,108070.0,1.25165021]
[1750907547268,0.002,108080.0,108070.0,1.34327949]
[1750907547669,0.001,108080.0,108070.0,1.34327949]
[1750907548474,0.1859466,108080.0,108070.0,1.34527949]
[1750907549176,0.1859466,108080.0,108070.0,1.34727949]
[1750907549578,0.001,108080.0,108070.0,1.34727949]
[1750907550480,0.1859466,108080.0,108070.0,1.34727949]
[1750907550777,0.1859466,108080.0,108070.0,1.25565021]
[1750907550976,0.1859466,108080.0,108070.0,1.32911491]
[1750907552381,0.001,108080.0,108070.0,1.32911491]
[1750907552984,0.1859466,108080.0,108070.0,1.32911491]
[1750907553170,0.1859466,108080.0,108070.0,1.00911491]
[1750907553376,0.1859466,108080.0,108070.0,1.30580339]
[1750907553578,0.2479466,108080.0,108070.0,0.63784339]
[1750907554183,0.52491812,108080.0,108070.0,0.62715368]
[1750907554381,0.52491812,108080.0,108070.0,0.55368898]
[1750907554581,0.2479466,108080.0,108070.0,0.55368898]
[1750907556077,0.3379466,108080.0,108070.0,0.55368898]
[1750907556275,0.79491812,108080.0,108070.0,0.55368898]
[1750907556476,0.2479466,108080.0,108070.0,0.55368898]
[1750907557483,0.3579466,108080.0,108070.0,0.55368898]
[1750907561289,0.63491812,108080.0,108070.0,0.36872528]
[1750907561589,1.38407812,108080.0,108070.0,0.00792528]
[1750907561985,0.7463066,108080.0,108070.0,0.19288898]
[1750907562288,1.0641066,108080.0,108070.0,0.8306605]
[1750907562481,1.0641066,108080.0,108070.0,0.8637605]
[1750907562482,0.3979466,108080.0,108070.0,0.8637605]
[1750907562887,0.3979466,108080.0,108070.0,0.61788898]
[1750907563090,0.3979466,108080.0,108070.0,0.9263605]
[1750907563387,0.3999466,108080.0,108070.0,0.9223605]
[1750907563582,0.3999466,108080.0,108070.0,1.2923605]
[1750907563889,0.3989466,108080.0,108070.0,1.2903605]
[1750907564483,0.1827,108080.0,108070.0,1.2903605]
[1750907564683,0.151,108080.0,108070.0,1.3638252]
[1750907564881,0.3359466,108080.0,108070.0,1.3638252]
[1750907566093,0.1859466,108080.0,108070.0,1.3638252]
[1750907566290,0.1859466,108080.0,108070.0,0.71685368]
[1750907566586,0.1859466,108080.0,108070.0,1.3538252]
[1750907568391,0.1859466,108080.0,108070.0,0.71685368]
[1750907568698,0.1959466,108080.0,108070.0,0.65425368]
[1750907568994,0.2605466,108080.0,108070.0,1.01425368]
[1750907569492,0.2605466,108080.0,108070.0,0.62115368]
[1750907569684,0.2605466,108080.0,108070.0,1.28579368]
[1750907570391,0.2505466,108080.0,108070.0,1.28579368]
[1750907572591,0.90751812,108080.0,108070.0,0.62115368]
[1750907573192,0.61751812,108080.0,108070.0,0.62115368]
[1750907573695,0.85751812,108080.0,108070.0,0.54768898]
[1750907574094,0.85751812,108080.0,108070.0,0.36272528]
[1750907574493,0.52751812,108080.0,108070.0,0.54768898]
[1750907574693,0.62751812,108080.0,108070.0,0.54768898]
[1750907575201,0.3505466,108080.0,108070.0,0.54768898]
[1750907575388,0.3505466,108080.0,108070.0,0.36272528]
[1750907577103,0.3505466,108080.0,108070.0,0.54768898]
[1750907577797,0.62751812,108080.0,108070.0,0.54768898]
[1750907578199,0.3505466,108080.0,108070.0,0.54768898]
[1750907578401,0.3505466,108080.0,108070.0,0.62115368]
[1750907579293,0.62751812,108080.0,108070.0,0.62115368]
[1750907579491,0.62751812,108080.0,108070.0,0.54768898]
[1750907580293,0.62751812,108080.0,108070.0,0.36272528]
[1750907580597,0.3505466,108080.0,108070.0,0.85768898]
[1750907580803,0.2179466,108080.0,108070.0,0.9598252]
[1750907580997,0.1859466,108080.0,108070.0,1.3198252]
[1750907581302,0.1859466,108080.0,108070.0,1.3507252]
[1750907581504,0.1859466,108080.0,108070.0,0.9907252]
[1750907581697,0.1859466,108080.0,108070.0,1.3007252]
[1750907584501,0.1859466,108080.0,108070.0,1.2272605]
[1750907584701,0.1859466,108080.0,108070.0,0.95028898]
[1750907584999,0.1859466,108080.0,108070.0,0.64028898]
[1750907585198,0.2175466,108080.0,108070.0,0.70101826]
[1750907585389,0.2502466,108080.0,108070.0,0.70101826]
[1750907585794,0.2502466,108080.0,108070.0,0.67001826]
[1750907586000,0.2502466,108080.0,108070.0,0.63931826]
[1750907586201,0.2502466,108080.0,108070.0,0.54768898]
[1750907586699,0.2502466,108080.0,108070.0,1.20940898]
[1750907587299,0.2502466,108080.0,108070.0,0.43632758]
[1750907587501,0.53721812,108080.0,108070.0,0.43632758]
[1750907588002,0.53721812,108080.0,108070.0,0.62129128]
[1750907588604,0.2602466,108080.0,108070.0,0.62129128]
[1750907588802,0.53721812,108080.0,108070.0,0.62129128]